[Event "Vezerkepzo GM May 2022"]
[Site "Budapest"]
[Date "2022.05.23"]
[Round "8.1"]
[White "Turzo, Attila"]
[Black "Nagy, Gabor"]
[Result "0-1"]
[ECO "E15"]
[WhiteElo "2338"]
[BlackElo "2503"]
[Annotator "TA"]
[PlyCount "82"]
[EventDate "2022.05.18"]
[EventType "tourn"]
[EventCountry "HUN"]
[SourceTitle "playchess.com"]
[Source "ChessBase"]
[SourceQuality "1"]
[TimeControl "5400+30"]

{[%evp 19,82,12,5,5,31,52,55,47,47,0,0,0,18,-5,31,0,36,12,53,7,12,5,19,14,7,8,17,18,16,0,0,0,0,0,0,0,0,0,0,-17,0,0,0,0,0,0,0,0,0,0,0,0,0,0,0,0,0,0,0,0,0,-1093,-1079,-928,-901]} 1. d4 {[%emt 0:00:02]} Nf6 {[%emt 0:15:37]} 2. c4 {[%emt 0:00:09]} e6 {[%emt 0:02:09]} 3. Nf3 {[%emt 0:00:09]} b6 {[%emt 0:00:19]} 4. g3 {[%emt 0:00:12]} Ba6 {[%emt 0:00:18]} 5. b3 {[%emt 0:00:22]} Bb4+ {[%emt 0:00:31]} 6. Bd2 {[%emt 0:00:12]} Be7 {[%emt 0:00:08]} 7. Nc3 {[%emt 0:00:12]} d5 {[%emt 0:00:13]} 8. cxd5 {[%emt 0:03:12]} exd5 {[%emt 0:00:13]} 9. Bg2 {[%emt 0:00:08]} O-O {[%emt 0:00:32]} 10. O-O {[%emt 0:00:08]} Re8 {[%emt 0:00:33]} 11. Ne5 {[%emt 0:00:32][%cal Ob3b4] E15: Queen's Indian: 4 g3 sidelines, 4 g3 Ba6 and 4 g3 Bb7 early deviations.} c6 {[%emt 0:03:20]} 12. Rc1 {[%emt 0:08:06]} Ba3 {[%emt 0:04:55]} 13. Rc2 {[%emt 0:00:25] [#] White is slightly better.} Bd6 $146 {[%emt 0:01:46]} ({Predecessor:} 13... Nfd7 14. f4 Nxe5 15. dxe5 d4 16. Ne4 d3 17. exd3 Bxd3 18. Bc3 Bxf1 19. Qxf1 Nd7 {½-½ (64) Gormally,D (2509)-Briscoe,C (2224) Great Yarmouth 2007}) 14. Nd3 {[%emt 0:05:36]} (14. Re1 $14 {is more appropriate.}) 14... Bxd3 $11 {[%emt 0:05:36]} 15. exd3 {[%emt 0:00:11]} Na6 {[%emt 0:00:22]} 16. Nb1 {[%emt 0:08:45]} Rc8 {[%emt 0:06:52]} 17. a3 {[%emt 0:00:42]} (17. Bh3 $5 {[%cal Rh3c8]}) 17... h6 {[%emt 0:02:42]} 18. b4 {[%emt 0:00:44][%cal Bb3b4,Bb4b5][%mdl 32]} c5 {[%emt 0:03:36]} 19. dxc5 {[%emt 0:05:11]} (19. Bh3 $14) 19... bxc5 {[%emt 0:00:10]} 20. b5 {[%emt 0:02:05]} Nc7 {[%emt 0:00:32]} 21. a4 {[%emt 0:00:06]} Ne6 {[%emt 0:00:37]} 22. Bc3 {[%emt 0:18:46]} Nd4 {[%emt 0:01:07]} 23. Bxd4 {[%emt 0:00:06]} cxd4 {[%emt 0:00:05]} 24. Bh3 {[%emt 0:00:10]} Rxc2 {[%emt 0:01:26]} 25. Qxc2 {[%emt 0:00:04]} Qa5 {[%emt 0:00:13]} 26. Bg2 {[%emt 0:09:19]} Bf8 {[%emt 0:03:20]} 27. Qb3 {[%emt 0:03:56]} Rc8 {[%emt 0:00:37]} 28. Bf3 {[%emt 0:02:00]} Rc5 {[%emt 0:01:03]} 29. Bd1 {[%emt 0:01:06]} Rc7 {[%emt 0:01:15]} 30. Qb2 {[%emt 0:00:41]} Qb4 {[%emt 0:03:09]} 31. Qa2 {[%emt 0:08:32]} g6 {[%emt 0:01:27]} 32. h4 {[%emt 0:02:03]} h5 {[%emt 0:00:11]} 33. Bb3 {[%emt 0:01:08]} Rc5 {[%emt 0:03:50]} 34. Kg2 {[%emt 0:03:13]} Kg7 {[%emt 0:01:30]} 35. Rd1 {[%emt 0:02:29]} Be7 {[%emt 0:01:55]} 36. Rd2 {[%emt 0:00:26]} Ng4 {[%emt 0:07:09]} 37. Rc2 {[%emt 0:03:55]} Rxc2 {[%emt 0:00:39]} 38. Qxc2 {[%emt 0:00:02]} Qe1 {[%emt 0:01:12] Hoping for ...Bf6.} 39. Bxd5 {[%emt 0:01:48]} Bd6 {[%emt 0:00:44][%cal Od6g3] ...Bxg3! is the strong threat.} 40. Bf3 $2 {[%emt 0:00:38][%mdl 8192] [#]} (40. Qb2 $11) 40... Ne3+ $1 $19 {[%emt 0:00:12][%mdl 576] Deflection} 41. fxe3 {[%emt 0:00:26]} Qxg3+ {[%emt 0:00:06] Weighted Error Value: White=0.31/Black=0.06 (flawless)} 0-1

[Event "Vezerkepzo GM May 2022"]
[Site "Budapest"]
[Date "2022.05.23"]
[Round "8.3"]
[White "Mazur, Stefan"]
[Black "Tancsa, Tamas"]
[Result "1-0"]
[ECO "C84"]
[WhiteElo "2423"]
[BlackElo "2091"]
[Annotator "TA"]
[PlyCount "59"]
[EventDate "2022.05.18"]
[EventType "tourn"]
[EventCountry "HUN"]
[SourceTitle "playchess.com"]
[Source "ChessBase"]
[SourceQuality "1"]
[TimeControl "5400+30"]

{[%evp 15,59,9,12,22,65,56,75,70,78,66,64,61,59,75,80,63,75,73,83,79,85,90,95,95,175,171,181,187,188,186,960,949,934,921,1394,1378,1334,691,29982,29983,29977,775,693,502,491,473]} 1. e4 {[%emt 0:00:06]} e5 {[%emt 0:00:03]} 2. Nf3 {[%emt 0:00:07]} Nc6 {[%emt 0:00:04]} 3. Bb5 {[%emt 0:00:14]} a6 {[%emt 0:00:05]} 4. Ba4 {[%emt 0:00:05]} Nf6 {[%emt 0:00:02]} 5. O-O {[%emt 0:00:13]} Be7 {[%emt 0:00:03]} 6. d3 {[%emt 0:00:13]} b5 {[%emt 0:02:11]} 7. Bb3 {[%emt 0:00:06]} O-O {[%emt 0:02:42]} 8. a4 {[%emt 0:00:19]} b4 {[%emt 0:00:11]} 9. a5 {[%emt 0:00:19] C84: Closed Ruy Lopez: Unusual White 6th moves.} d5 {[%emt 0:14:23]} 10. exd5 {[%emt 0:00:14]} Nxd5 {[%emt 0:00:27]} 11. Re1 {[%emt 0:00:15] White is better.} (11. Nbd2 {is interesting.} Nf4 12. Re1 Bg4 13. Ba4) 11... Bb7 {[%emt 0:15:18]} 12. Nxe5 {[%emt 0:00:29]} Nxe5 {[%emt 0:00:27]} 13. Rxe5 {[%emt 0:00:07]} Bf6 {[%emt 0:01:14]} 14. Re1 {[%emt 0:00:12] [#]} Bd4 $146 {[%emt 0:01:35] White must now prevent ...Qh4.} ({Predecessor:} 14... Re8 15. Nd2 Rxe1+ 16. Qxe1 Qd7 17. Ne4 Bd4 18. Be3 Nxe3 19. fxe3 Bxe4 20. dxe4 Bxb2 {½-½ (94) Oberholzer,F (2056)-Osinovsky,S (2241) Chess.com INT 2020}) 15. Nd2 $1 {[%emt 0:15:51]} Qh4 {[%emt 0:10:31]} 16. Ne4 {[%emt 0:03:27] Threatens to win with Bg5.} h6 {[%emt 0:09:55] Against Bg5} 17. Qf3 $1 {[%emt 0:03:40]} Rae8 {[%emt 0:05:27] [#]} 18. Bd2 $1 {[%emt 0:18:03]} Bxb2 {[%emt 0:05:01] [#]} 19. Rab1 {[%emt 0:01:01]} Bc3 {[%emt 0:01:03]} (19... Bd4 $16) 20. Nxc3 $18 {[%emt 0:08:59]} bxc3 {[%emt 0:03:19]} 21. Rxe8 {[%emt 0:02:44]} (21. Bxd5 $2 Bxd5 22. Qxd5 cxd2 $19) 21... Rxe8 {[%emt 0:02:05]} 22. Bxc3 {[%emt 0:00:13]} ({Don't blunder} 22. Bxd5 $2 Bxd5 23. Bg5 (23. Qf4 $2 cxd2 24. Qxd2 Bxg2 $19) 23... Qxg5 $19) 22... Nf4 {[%emt 0:04:28]} (22... Qd8) 23. Bxf7+ {[%emt 0:03:45]} Kxf7 {[%emt 0:00:07]} 24. Rxb7 {[%emt 0:00:15]} Qf6 {[%emt 0:00:07]} 25. Rxc7+ {[%emt 0:02:58]} Kg8 {[%emt 0:00:39]} 26. h3 {[%emt 0:02:06]} Qf5 {[%emt 0:02:03]} 27. Rxg7+ {[%emt 0:03:13]} Kf8 {[%emt 0:00:30]} 28. Rg4 {[%emt 0:00:34]} (28. Kh2 $142 Re5 29. g4 Qf6 30. Ra7 Nd5 31. Qxf6+ Nxf6 32. Bxe5 Ng8 33. Rxa6) 28... Ne2+ {[%emt 0:00:18]} 29. Kh2 {[%emt 0:00:08]} Qxf3 {[%emt 0:00:22]} 30. Bb4+ {[%emt 0:00:13] Black got outplayed after the opening.  Weighted Error Value: White=0.35/Black=0.60} ({Less strong is} 30. gxf3 Nxc3 31. Rg6 Re2 $16) 1-0

[Event "Vezerkepzo GM May 2022"]
[Site "Budapest"]
[Date "2022.05.23"]
[Round "8.4"]
[White "Aveskulov, Valeriy"]
[Black "Berczes, David"]
[Result "1/2-1/2"]
[ECO "C13"]
[WhiteElo "2531"]
[BlackElo "2437"]
[Annotator "TA"]
[PlyCount "39"]
[EventDate "2022.05.18"]
[EventType "tourn"]
[EventCountry "HUN"]
[SourceTitle "playchess.com"]
[Source "ChessBase"]
[SourceQuality "1"]
[TimeControl "5400+30"]

{[%evp 14,39,15,24,20,7,0,0,7,0,1,0,22,-8,0,-15,-6,-5,-4,-20,-11,-4,-9,-35,-42,-87,-68,-92]} 1. e4 {[%emt 0:00:03]} e6 {[%emt 0:18:57]} 2. d4 {[%emt 0:00:03]} d5 {[%emt 0:00:07]} 3. Nc3 {[%emt 0:00:03]} Nf6 {[%emt 0:00:16]} 4. Bg5 {[%emt 0:00:04]} dxe4 {[%emt 0:00:09]} 5. Nxe4 {[%emt 0:00:04]} Be7 {[%emt 0:00:05]} 6. Bxf6 {[%emt 0:00:05]} gxf6 {[%emt 0:00:04]} 7. Nf3 {[%emt 0:00:06]} f5 {[%emt 0:01:57]} 8. Nc3 {[%emt 0:00:12]} a6 {[%emt 0:00:48] C13: French: Classical System: 4 Bg5 Be7, Alekhine-Chatard Attack.} 9. g3 {[%emt 0:00:17]} b5 {[%emt 0:00:38][%cal Bb7b5,Bb5b4][%mdl 32]} 10. Bg2 {[%emt 0:00:09] Hoping for Ne5.} Bb7 {[%emt 0:00:05] The position is equal.} 11. O-O {[%emt 0:00:57][%cal Od4d5]} O-O {[%emt 0:00:57]} 12. Qe2 {[%emt 0:00:04]} c5 {[%emt 0:13:49]} (12... b4 $5 {[%cal Rb4c3]} 13. Nd1 c5 $11) 13. Rad1 {[%emt 0:12:18][%cal Od4d5] Black must now prevent d5!} Qc7 {[%emt 0:02:37]} 14. Rfe1 {[%emt 0:09:02] [#]} b4 $146 {[%emt 0:15:44]} ({Predecessor:} 14... cxd4 15. Nxd4 Bxg2 16. Kxg2 Bf6 17. Qf3 Bxd4 18. Qxa8 Bxc3 19. bxc3 Qxc3 20. Qf3 Qxc2 {1-0 (37) Gundavaa,B (2479)-Freitag,M (2393) Graz 2017}) 15. Na4 {[%emt 0:05:12][%cal Od4d5] [#] d5! is the strong threat.} cxd4 {[%emt 0:00:26]} 16. Nxd4 {[%emt 0:01:09] And now Bxb7 would win. Pair of Knights!} Bxg2 {[%emt 0:00:29]} 17. Kxg2 {[%emt 0:00:19][%cal Od4f5] Threatens to win with Nxf5!} Bf6 {[%emt 0:13:57]} 18. Qf3 {[%emt 0:08:59] aiming for Nxe6.} Nd7 {[%emt 0:13:10]} 19. Nc6 {[%emt 0:28:02][%cal Od1d7]} Rac8 {[%emt 0:07:07]} 20. Re2 {[%emt 0:04:54] Weighted Error Value: White=0.10 (very precise) /Black=0.04 (flawless)} 1/2-1/2

[Event "Vezerkepzo GM May 2022"]
[Site "Budapest"]
[Date "2022.05.23"]
[Round "8.5"]
[White "Fule, Simon"]
[Black "Dudin, Gleb"]
[Result "0-1"]
[ECO "C70"]
[WhiteElo "2297"]
[BlackElo "2473"]
[Annotator "TA"]
[PlyCount "46"]
[EventDate "2022.05.18"]
[EventType "tourn"]
[EventCountry "HUN"]
[SourceTitle "playchess.com"]
[Source "ChessBase"]
[SourceQuality "1"]
[TimeControl "5400+30"]

{[%evp 10,46,34,40,42,40,37,34,37,31,45,24,38,43,42,18,25,15,33,26,42,26,72,77,79,0,-7,-176,-172,-165,-169,-164,-158,-160,-160,-143,-140,-173,-149]} 1. e4 {[%emt 0:00:06]} e5 {[%emt 0:00:28]} 2. Nf3 {[%emt 0:00:42]} Nc6 {[%emt 0:00:09]} 3. Bb5 {[%emt 0:00:30][%cal Bf1b5,Bb5a4,Ba4b3][%mdl 32]} a6 {[%emt 0:00:10]} 4. Ba4 {[%emt 0:00:04]} g6 {[%emt 0:00:32]} 5. d4 {[%emt 0:16:17]} exd4 {[%emt 0:00:24]} 6. Nxd4 {[%emt 0:03:16]} Bg7 {[%emt 0:07:46] C70: Ruy Lopez: 3...a6 4 Ba4, Norwegian and Delayed Schliemann.} 7. Nxc6 {[%emt 0:01:21]} dxc6 {[%emt 0:01:00]} 8. Qxd8+ {[%emt 0:01:38]} Kxd8 {[%emt 0:00:03] White is slightly better.} 9. Bb3 {[%emt 0:04:18]} Ke7 {[%emt 0:03:45] [#]} 10. c3 $146 {[%emt 0:04:28]} (10. Nc3 {feels hotter.} Be5 11. Bg5+ f6 12. Be3) ({Predecessor:} 10. Bg5+ Bf6 11. Bxf6+ Nxf6 12. Nd2 Nd7 13. f3 Nc5 14. Ke2 a5 15. c3 b6 16. Bc2 {½-½ (61) Kucza,K (2296)-Cukrowski,F (2424) Polanica Zdroj 2019}) 10... Nf6 {[%emt 0:00:24]} 11. f3 {[%emt 0:05:09]} Nd7 {[%emt 0:00:46]} 12. Be3 {[%emt 0:00:57]} a5 {[%emt 0:02:59]} 13. a4 {[%emt 0:15:10]} Rd8 {[%emt 0:01:20]} 14. Nd2 {[%emt 0:03:39]} Ne5 {[%emt 0:01:59]} 15. O-O-O {[%emt 0:05:08]} b5 {[%emt 0:45:32]} (15... b6 $11) 16. Kc2 {[%emt 0:15:03]} Ba6 {[%emt 0:04:32]} 17. Bd4 {[%emt 0:02:17]} ({White should play} 17. f4 $16 Ng4 18. Bc5+ Ke8 19. h3) 17... Rab8 {[%emt 0:04:12]} 18. Nb1 $2 {[%emt 0:11:36] [#] This costs White the game.} (18. f4 $11 {and White is okay.} Rxd4 19. axb5 (19. cxd4 Ng4 $11) 19... Rxd2+ 20. Rxd2) 18... bxa4 $19 {[%emt 0:05:30] Black is clearly better.} 19. Bc5+ {[%emt 0:01:27]} Kf6 {[%emt 0:01:43] Chess con chili.} 20. Bxa4 {[%emt 0:00:35]} Bd3+ {[%emt 0:04:48]} 21. Rxd3 {[%emt 0:04:40]} Nxd3 {[%emt 0:00:37]} (21... Rxd3 $2 22. f4 (22. Bd4 Rxd4 23. cxd4 Nc4 $11) 22... Nd7 23. Ba7 $18) 22. Bd4+ {[%emt 0:00:05] [#]} Ke7 $1 {[%emt 0:02:33]} 23. Kxd3 {[%emt 0:00:57]} c5 $1 {[%emt 0:00:08][%mdl 64] Pin.  Weighted Error Value: White=0.25 (precise) /Black=0.07 (flawless)} ({Resist} 23... Rxb2 24. Bxc6 Rd6 25. Bd5 $14) 0-1

[Event "Vezerkepzo GM May 2022"]
[Site "Budapest"]
[Date "2022.05.24"]
[Round "9.1"]
[White "Dudin, Gleb"]
[Black "Turzo, Attila"]
[Result "1-0"]
[ECO "D10"]
[WhiteElo "2473"]
[BlackElo "2338"]
[Annotator "TA"]
[PlyCount "111"]
[EventDate "2022.05.18"]
[EventType "tourn"]
[EventCountry "HUN"]
[SourceTitle "playchess.com"]
[Source "ChessBase"]
[SourceQuality "1"]
[TimeControl "5400+30"]

{[%evp 9,111,-6,0,-4,-3,-12,-2,0,-5,0,-9,-2,9,16,19,0,0,0,-9,-16,0,0,8,11,12,6,10,0,23,8,23,18,24,23,37,33,51,18,21,20,22,12,22,18,13,18,29,16,16,14,38,27,52,57,62,72,106,99,99,99,116,111,131,131,113,86,99,86,86,86,100,86,112,86,101,68,68,69,169,162,139,122,310,276,242,241,215,162,215,280,513,497,466,412,6845,6079,12841,12849,4627,4618,29984,29985,29987,29988]} 1. d4 {[%emt 0:00:15]} d5 {[%emt 0:00:18]} 2. c4 {[%emt 0:00:11]} c6 {[%emt 0:00:07]} 3. cxd5 {[%emt 0:00:18]} cxd5 {[%emt 0:00:07]} 4. Bg5 {[%emt 0:00:09]} f6 {[%emt 0:14:14]} 5. Bd2 {[%emt 0:00:36]} Nc6 {[%emt 0:00:35]} 6. Nc3 {[%emt 0:02:49] D10: Slav Defence: 3 cxd5 (without early Nf3) and 3 Nc3.} e5 {[%emt 0:13:38]} 7. e4 {[%emt 0:00:44]} dxe4 {[%emt 0:02:37]} 8. dxe5 {[%emt 0:02:02] The position is equal.} fxe5 {[%emt 0:16:08]} 9. Bc4 {[%emt 0:01:58]} Nf6 {[%emt 0:00:20]} 10. Nge2 {[%emt 0:02:00]} Bc5 {[%emt 0:04:20]} 11. O-O {[%emt 0:04:48]} Bg4 {[%emt 0:17:34] [#]} 12. Bg5 $146 {[%emt 0:11:07]} ({Predecessor:} 12. h3 Bh5 13. Rc1 Qd7 14. Bg5 Nd4 15. Bxf6 gxf6 16. Nxe4 Be7 17. N4g3 Nxe2+ 18. Bxe2 Qxd1 19. Bxd1 Bxd1 20. Rfxd1 {1-0 (43) Caruana,F (2835)-Vachier Lagrave,M (2778) chess24.com INT 2020}) 12... Qxd1 {[%emt 0:02:39]} 13. Raxd1 {[%emt 0:06:08]} Nd4 {[%emt 0:00:14]} 14. h3 {[%emt 0:17:49]} Bh5 {[%emt 0:04:02]} 15. Rd2 {[%emt 0:06:38]} O-O-O {[%emt 0:03:08]} 16. Nxd4 {[%emt 0:14:32]} Rxd4 {[%emt 0:00:59]} 17. Be6+ {[%emt 0:01:36][%cal Bc4e6,Be6f5,Bf5e4][%mdl 32]} Kb8 {[%emt 0:00:11]} 18. Rc2 {[%emt 0:00:19] aiming for Nb5.} Rd6 {[%emt 0:04:06]} 19. Bf5 {[%emt 0:02:37]} Bd4 {[%emt 0:00:24]} 20. Nxe4 {[%emt 0:08:37]} Nxe4 {[%emt 0:00:14]} 21. Bxe4 {[%emt 0:00:06]} h6 {[%emt 0:00:27]} 22. Be7 {[%emt 0:04:23]} Re6 {[%emt 0:00:53]} 23. Bc5 {[%emt 0:00:51]} Bg6 {[%emt 0:00:33]} 24. Bxg6 {[%emt 0:04:56]} Rxg6 {[%emt 0:00:02]} 25. Rfc1 {[%emt 0:00:48]} Rd8 {[%emt 0:01:32]} 26. Be7 {[%emt 0:00:49]} Re8 {[%emt 0:00:10] [#]} 27. b3 $1 {[%emt 0:01:51]} a6 {[%emt 0:01:33]} (27... a5 28. Bh4) 28. Bb4 {[%emt 0:03:40]} Rf6 {[%emt 0:01:14]} 29. Bc5 {[%emt 0:00:52]} Rf7 {[%emt 0:05:23]} 30. Kf1 {[%emt 0:01:17]} Rd7 {[%emt 0:04:22]} 31. Ke2 {[%emt 0:00:20]} Red8 {[%emt 0:00:08]} 32. Rd2 {[%emt 0:00:44]} b6 {[%emt 0:02:50]} 33. Bxd4 {[%emt 0:00:34]} exd4 $16 {[%emt 0:00:01][%mdl 4096] Endgame [#] KRR-KRR} 34. Kd3 $1 {[%emt 0:00:18]} b5 {[%emt 0:01:34]} 35. Re2 {[%emt 0:00:18]} Kb7 {[%emt 0:00:29] Prevents Rc6.} 36. Re6 {[%emt 0:00:52] White is more active.} Rd6 {[%emt 0:00:02] Against Rc6} 37. Re4 {[%emt 0:00:37]} g5 {[%emt 0:00:24]} 38. f3 {[%emt 0:00:20]} Kb6 {[%emt 0:00:23]} 39. Re5 {[%emt 0:00:27]} Rg8 {[%emt 0:00:52]} 40. Rcc5 {[%emt 0:00:32]} Rgd8 {[%emt 0:00:28]} 41. a3 {[%emt 0:00:40]} R8d7 {[%emt 0:00:11]} 42. a4 {[%emt 0:00:28]} bxa4 {[%emt 0:00:12]} 43. bxa4 {[%emt 0:00:07][%cal Bb3a4,Ba4a5][%mdl 32]} Rc7 {[%emt 0:01:15]} (43... Ka7 $14) 44. a5+ $18 {[%emt 0:00:44]} Kb7 {[%emt 0:00:02]} 45. Rcd5 {[%emt 0:00:40]} Rcd7 {[%emt 0:00:58] Loses the game.} (45... Rdc6 $16) 46. Kxd4 {[%emt 0:00:30]} Kc6 {[%emt 0:00:47][%cal Rd6d5]} 47. Rxd6+ {[%emt 0:00:06]} Rxd6+ {[%emt 0:00:04] KR-KR} 48. Kc4 {[%emt 0:00:32]} Rd2 {[%emt 0:00:23]} (48... Rf6 $142 49. Rc5+ Kd7) 49. g4 {[%emt 0:00:50][%cal Bg2g4,Bg4h5,Bh5h6,Bh6h7][%mdl 32] Threatens to win with Re6+.} ({But not} 49. Re6+ $6 Kd7 50. Rxh6 (50. Rxa6 Rxg2 51. Rxh6 Rg3 $18) 50... Rxg2) 49... Rf2 $2 {[%emt 0:00:36]} (49... Kd6 50. Rf5 Ke6) 50. Re6+ {[%emt 0:00:22]} Kb7 {[%emt 0:00:02]} 51. Rf6 {[%emt 0:00:25]} h5 {[%emt 0:00:48]} (51... Ra2 $142 52. Rb6+ (52. Rxh6 Rxa5 53. h4 gxh4 $18) 52... Ka7 53. Rxh6 Rxa5) 52. gxh5 {[%emt 0:00:26] White wants to mate with h6.} Rh2 {[%emt 0:00:01]} 53. h6 {[%emt 0:00:27] Kd5 would kill now.} Rxh3 {[%emt 0:00:04]} 54. Kd5 {[%emt 0:00:11] Intending Rf7+ and mate.} Rh4 {[%emt 0:00:46]} 55. Rf7+ {[%emt 0:00:12]} Kb8 {[%emt 0:00:11]} 56. h7 {[%emt 0:00:06] Weighted Error Value: White=0.08 (flawless) /Black=0.40} 1-0

[Event "Vezerkepzo GM May 2022"]
[Site "Budapest"]
[Date "2022.05.24"]
[Round "9.3"]
[White "Tancsa, Tamas"]
[Black "Aveskulov, Valeriy"]
[Result "1/2-1/2"]
[ECO "B90"]
[WhiteElo "2091"]
[BlackElo "2531"]
[Annotator "TA"]
[PlyCount "90"]
[EventDate "2022.05.18"]
[EventType "tourn"]
[EventCountry "HUN"]
[SourceTitle "playchess.com"]
[Source "ChessBase"]
[SourceQuality "1"]
[TimeControl "5400+30"]

{[%evp 15,90,22,28,18,22,26,20,27,24,27,37,44,43,31,28,18,38,34,51,45,53,54,64,56,66,47,66,47,77,31,39,41,46,55,52,58,58,-170,-175,-152,-47,-87,-108,-97,-21,-43,-10,-11,0,-41,-37,-37,-37,-38,-45,-41,-28,-17,-33,-84,-84,-219,-225,-204,-109,-99,-82,-54,0,0,0,0,0,0,0,0,0]} 1. e4 {[%emt 0:00:06]} c5 {[%emt 0:00:04]} 2. Nf3 {[%emt 0:00:08]} d6 {[%emt 0:00:04]} 3. d4 {[%emt 0:00:04]} Nf6 {[%emt 0:00:05]} 4. Nc3 {[%emt 0:00:26]} cxd4 {[%emt 0:00:04]} 5. Nxd4 {[%emt 0:00:04]} a6 {[%emt 0:00:04]} 6. f3 {[%emt 0:00:06]} e5 {[%emt 0:00:05]} 7. Nb3 {[%emt 0:00:03]} Be6 {[%emt 0:00:06]} 8. Be3 {[%emt 0:00:04]} h5 {[%emt 0:00:08]} 9. Nd5 {[%emt 0:00:03] B90: Sicilian Najdorf: Unusual White 6th moves, 6 Be3 Ng4 and 6 Be3 e5.} Bxd5 {[%emt 0:00:11]} 10. exd5 {[%emt 0:00:07]} Nbd7 {[%emt 0:00:10]} 11. Qd2 {[%emt 0:00:20]} g6 {[%emt 0:00:30]} 12. Be2 {[%emt 0:00:09]} Qc7 {[%emt 0:00:09]} 13. Rc1 {[%emt 0:00:05]} Bg7 {[%emt 0:00:06]} 14. O-O {[%emt 0:00:15]} O-O {[%emt 0:00:05]} 15. c4 {[%emt 0:00:05]} b6 {[%emt 0:00:11] Prevents Na5.} 16. Na1 {[%emt 0:00:05][%cal Bb3a1,Ba1c2,Bc2b4,Bb4c6][%mdl 32]} h4 {[%emt 0:01:56]} 17. Nc2 {[%emt 0:04:21]} Nh5 {[%emt 0:00:06][%cal Oh5f4]} 18. Rfe1 {[%emt 0:02:04]} f5 {[%emt 0:02:16]} 19. Nb4 {[%emt 0:01:17]} Kh7 {[%emt 0:00:45][%cal Oh4h3]} 20. Nc6 {[%emt 0:00:38]} a5 {[%emt 0:00:12][%cal Ba6a5,Ba5a4,Ba4b3][%mdl 32] [#]} 21. b3 $146 {[%emt 0:01:04][%cal Bb2b3,Bb3b4][%mdl 32] White is much more active.} ({Predecessor:} 21. Bf1 h3 22. gxh3 Rae8 23. b3 Nc5 24. Kh1 Qd7 25. Bg2 Qf7 26. Rb1 Ra8 27. a3 {½-½ (53) Galliano,G (2053)-Hendricks,R (1942) FICGS email 2020}) 21... Nc5 {[%emt 0:01:37]} 22. Bd1 {[%emt 0:02:34]} (22. Rb1 $16) 22... Qf7 {[%emt 0:00:32]} 23. a3 {[%emt 0:01:14]} a4 {[%emt 0:13:54]} 24. b4 {[%emt 0:04:01]} Nb3 {[%emt 0:00:11]} 25. Bxb3 {[%emt 0:03:56]} axb3 {[%emt 0:00:06]} 26. c5 $2 {[%emt 0:03:26]} (26. Qb2 $14 {keeps the upper hand.}) 26... bxc5 $1 $19 {[%emt 0:05:47]} 27. bxc5 {[%emt 0:02:32]} dxc5 {[%emt 0:00:21]} (27... Rxa3 $17 {Strongly threatening ...e4.} 28. cxd6 e4) 28. Bxc5 {[%emt 0:01:54]} Rfe8 {[%emt 0:00:11]} 29. Rb1 {[%emt 0:35:16][%cal Bc1b1,Bb1b3,Bb3d3,Bd3d6][%mdl 32]} Nf4 {[%emt 0:03:35]} (29... Rac8 $1 $17 {And now ...Nf6 would win.} 30. Red1 Nf6) 30. Rxb3 {[%emt 0:00:40]} Nxd5 {[%emt 0:06:11][%cal Oh4h3]} 31. Rd3 {[%emt 0:21:10]} Nf4 {[%emt 0:05:17]} 32. Rd6 {[%emt 0:01:46][%cal Oc6e5] Threatens to win with Nxe5!} (32. Rd7 $5 {[%cal Rd7f7]} Qc4 33. Qb4 $15 (33. Qf2 $2 Ne6 $19)) 32... Qc4 {[%emt 0:08:03]} 33. Qb4 {[%emt 0:02:44]} Ra4 {[%emt 0:03:05]} 34. Qxc4 {[%emt 0:02:05]} Rxc4 {[%emt 0:00:02]} 35. Be3 {[%emt 0:00:29]} Re6 {[%emt 0:07:59]} 36. Rxe6 {[%emt 0:02:45]} Nxe6 {[%emt 0:00:04]} 37. Rc1 {[%emt 0:02:31] [#]} ({Better is} 37. Nb4 $15) 37... Ra4 $1 $17 {[%emt 0:00:42]} 38. Ne7 {[%emt 0:03:10]} (38. Rd1 $17) 38... Rxa3 $19 {[%emt 0:08:40]} 39. Rc6 {[%emt 0:00:07] [#]} Nd8 {[%emt 0:15:56]} ({And not} 39... Rxe3 40. Rxe6 Rb3 41. Nxg6 $11) (39... Nd4 $1 $19 {[%cal Rd4c6]} 40. Bxd4 exd4) 40. Rd6 {[%emt 0:00:37]} ({Avoid the trap} 40. Rxg6 $2 Bf8 41. Bg5 Ra1+ 42. Kf2 Ra2+ 43. Kf1 Bxe7 44. Rh6+ Kg7 45. Bxe7 Kxh6 $19) 40... Nf7 {[%emt 0:01:14]} 41. Rxg6 {[%emt 0:00:20]} Bf8 {[%emt 0:00:05]} (41... f4 $15 42. Bc5 Rc3) 42. Rf6 $11 {[%emt 0:00:13] The position is equal.} Kg7 {[%emt 0:00:22]} 43. Rg6+ {[%emt 0:00:15]} Kh7 {[%emt 0:00:04]} 44. Rf6 {[%emt 0:00:09]} Kg7 {[%emt 0:01:49]} 45. Rg6+ {[%emt 0:00:07]} Kh7 {[%emt 0:00:02] Weighted Error Value: White=0.24 (precise) /Black=0.15 (very precise)} 1/2-1/2